[Event "Early-Titled-Tuesday-Blitz-January-30-2024"]
[Site "Chess.com"]
[Date "2024.01.30"]
[Round "4"]
[White "lelajavakhishvili"]
[Black "carloseduar100"]
[Result "1-0"]
[WhiteElo "2512"]
[BlackElo "2284"]
[TimeControl "180+1"]
[EndTime "8:39:59 PST"]
[Termination "lelajavakhishvili won by checkmate"]

1. d4 {[%clk 0:03:00.9]} 1... d5 {[%clk 0:02:58.8]} 2. Nf3 {[%clk 0:03:00.8]}
2... c6 {[%clk 0:02:57.7]} 3. g3 {[%clk 0:03:01]} 3... Nf6 {[%clk 0:02:56.6]} 4.
Bg2 {[%clk 0:03:01.1]} 4... g6 {[%clk 0:02:56.9]} 5. O-O {[%clk 0:03:01.1]} 5...
Bg7 {[%clk 0:02:57.8]} 6. c4 {[%clk 0:03:00.6]} 6... O-O {[%clk 0:02:58.7]} 7.
cxd5 {[%clk 0:03:00.2]} 7... cxd5 {[%clk 0:02:58.7]} 8. Nc3 {[%clk 0:03:00.4]}
8... Nc6 {[%clk 0:02:57.7]} 9. Qb3 {[%clk 0:03:00]} 9... a6 {[%clk 0:02:57.5]}
10. a4 {[%clk 0:02:56.8]} 10... Bg4 {[%clk 0:02:39.7]} 11. e3 {[%clk 0:02:55.4]}
11... Qd7 {[%clk 0:02:38.5]} 12. Ne5 {[%clk 0:02:55.2]} 12... Nxe5 {[%clk
0:02:38.5]} 13. dxe5 {[%clk 0:02:55]} 13... Nh5 {[%clk 0:02:21]} 14. Nxd5 {[%clk
0:02:38.8]} 14... Be6 {[%clk 0:02:10.3]} 15. Nb6 {[%clk 0:02:33.1]} 15... Qd8
{[%clk 0:01:42.1]} 16. Qb4 {[%clk 0:02:26.8]} 16... Bxe5 {[%clk 0:01:42.2]} 17.
Nxa8 {[%clk 0:02:24.7]} 17... Qxa8 {[%clk 0:01:41.7]} 18. Qxb7 {[%clk 0:02:23]}
18... Qd8 {[%clk 0:01:34.1]} 19. Qxa6 {[%clk 0:02:19]} 19... Nf6 {[%clk
0:01:30.6]} 20. Qb5 {[%clk 0:02:16.6]} 20... Qc7 {[%clk 0:01:23.3]} 21. a5
{[%clk 0:02:15.4]} 21... Bc4 {[%clk 0:01:21.6]} 22. Qb6 {[%clk 0:02:13.4]} 22...
Qxb6 {[%clk 0:01:19.7]} 23. axb6 {[%clk 0:02:14.3]} 23... Bxf1 {[%clk
0:01:19.7]} 24. Kxf1 {[%clk 0:02:13.9]} 24... Nd7 {[%clk 0:01:13.3]} 25. b7
{[%clk 0:02:11.4]} 25... e6 {[%clk 0:01:09.4]} 26. Ra8 {[%clk 0:02:09.1]} 26...
Nb8 {[%clk 0:01:09.7]} 27. Bd2 {[%clk 0:02:02.7]} 27... Bxb2 {[%clk 0:01:07.7]}
28. Bb4 {[%clk 0:02:02.2]} 28... Be5 {[%clk 0:00:45]} 29. Bxf8 {[%clk
0:02:01.6]} 29... Kxf8 {[%clk 0:00:45.9]} 30. f4 {[%clk 0:02:01.7]} 30... Bd6
{[%clk 0:00:45.5]} 31. Ke2 {[%clk 0:02:01.6]} 31... Ke7 {[%clk 0:00:45.5]} 32.
Kd3 {[%clk 0:02:01.9]} 32... Kd7 {[%clk 0:00:45.7]} 33. Kc4 {[%clk 0:02:01.6]}
33... Kc7 {[%clk 0:00:46]} 34. Kb5 {[%clk 0:02:01.2]} 34... h5 {[%clk 0:00:46]}
35. Ra1 {[%clk 0:02:00.4]} 35... e5 {[%clk 0:00:35.3]} 36. Rc1+ {[%clk
0:01:59.8]} 36... Kd7 {[%clk 0:00:34.6]} 37. Kb6 {[%clk 0:01:55.1]} 37... exf4
{[%clk 0:00:34.7]} 38. exf4 {[%clk 0:01:55.7]} 38... h4 {[%clk 0:00:34.1]} 39.
Bh3+ {[%clk 0:01:53.6]} 39... Ke7 {[%clk 0:00:31.8]} 40. Rc8 {[%clk 0:01:51.3]}
40... hxg3 {[%clk 0:00:31.6]} 41. hxg3 {[%clk 0:01:51.8]} 41... g5 {[%clk
0:00:31.1]} 42. fxg5 {[%clk 0:01:50.5]} 42... Bxg3 {[%clk 0:00:28.9]} 43. Ka7
{[%clk 0:01:49.5]} 43... Nd7 {[%clk 0:00:19.9]} 44. Bxd7 {[%clk 0:01:48.5]}
44... Kxd7 {[%clk 0:00:20.8]} 45. b8=Q {[%clk 0:01:46]} 45... Bxb8+ {[%clk
0:00:21.4]} 46. Rxb8 {[%clk 0:01:45.5]} 46... Ke6 {[%clk 0:00:22.3]} 47. Rb7
{[%clk 0:01:45.3]} 47... Kf5 {[%clk 0:00:23.2]} 48. Rxf7+ {[%clk 0:01:45]} 48...
Kxg5 {[%clk 0:00:24.1]} 49. Kb7 {[%clk 0:01:44.7]} 49... Kg6 {[%clk 0:00:25]}
50. Rf1 {[%clk 0:01:44.8]} 50... Kg5 {[%clk 0:00:25.9]} 51. Kc6 {[%clk 0:01:45]}
51... Kg6 {[%clk 0:00:26.8]} 52. Kd5 {[%clk 0:01:45.1]} 52... Kg5 {[%clk
0:00:27.7]} 53. Ke4 {[%clk 0:01:45]} 53... Kg6 {[%clk 0:00:28.6]} 54. Ke5 {[%clk
0:01:45.2]} 54... Kg5 {[%clk 0:00:29.5]} 55. Rg1+ {[%clk 0:01:44.9]} 55... Kh4
{[%clk 0:00:28]} 56. Kf5 {[%clk 0:01:44.6]} 56... Kh3 {[%clk 0:00:28.2]} 57. Kf4
{[%clk 0:01:44.5]} 57... Kh2 {[%clk 0:00:28.3]} 58. Rg3 {[%clk 0:01:44.6]} 58...
Kh1 {[%clk 0:00:28]} 59. Kf3 {[%clk 0:01:44.7]} 59... Kh2 {[%clk 0:00:28.4]} 60.
Kf2 {[%clk 0:01:44.9]} 60... Kh1 {[%clk 0:00:29]} 61. Rh3# {[%clk 0:01:45.2]}
1-0

[Event "Early-Titled-Tuesday-Blitz-January-30-2024"]
[Site "Chess.com"]
[Date "2024.01.30"]
[Round "4"]
[White "SaqoChess_Twitch"]
[Black "lacafi"]
[Result "1-0"]
[WhiteElo "2588"]
[BlackElo "2241"]
[TimeControl "180+1"]
[EndTime "8:40:03 PST"]
[Termination "SaqoChess_Twitch won on time"]

1. d4 {[%clk 0:03:00.9]} 1... f5 {[%clk 0:02:59.6]} 2. c4 {[%clk 0:03:01.5]}
2... Nf6 {[%clk 0:02:59.7]} 3. Nc3 {[%clk 0:03:02.1]} 3... g6 {[%clk 0:03:00.2]}
4. Nf3 {[%clk 0:03:01.6]} 4... Bg7 {[%clk 0:03:00.3]} 5. g3 {[%clk 0:03:02.3]}
5... O-O {[%clk 0:03:00.8]} 6. Bg2 {[%clk 0:03:03]} 6... d6 {[%clk 0:03:01.4]}
7. O-O {[%clk 0:03:03.7]} 7... Nc6 {[%clk 0:03:02]} 8. b3 {[%clk 0:03:04.4]}
8... e5 {[%clk 0:03:01.8]} 9. d5 {[%clk 0:03:04.6]} 9... Ne7 {[%clk 0:03:02]}
10. Ng5 {[%clk 0:03:02.7]} 10... h6 {[%clk 0:02:56.5]} 11. Ne6 {[%clk
0:03:02.4]} 11... Bxe6 {[%clk 0:02:56.5]} 12. dxe6 {[%clk 0:03:03.3]} 12... Rb8
{[%clk 0:02:53.7]} 13. Nd5 {[%clk 0:02:59.6]} 13... c6 {[%clk 0:02:45.8]} 14.
Nxf6+ {[%clk 0:02:56]} 14... Rxf6 {[%clk 0:02:45.2]} 15. Ba3 {[%clk 0:02:56.8]}
15... Rxe6 {[%clk 0:02:44.9]} 16. e4 {[%clk 0:02:55.8]} 16... Qc7 {[%clk
0:02:34.3]} 17. exf5 {[%clk 0:02:54.3]} 17... gxf5 {[%clk 0:02:28.7]} 18. Qc2
{[%clk 0:02:54.2]} 18... Rf8 {[%clk 0:02:24.3]} 19. Rad1 {[%clk 0:02:54.7]}
19... c5 {[%clk 0:02:22.4]} 20. Rfe1 {[%clk 0:02:45.4]} 20... Kh8 {[%clk
0:02:20.4]} 21. Bb2 {[%clk 0:02:43.7]} 21... Nc6 {[%clk 0:02:17.9]} 22. Bd5
{[%clk 0:02:41.4]} 22... Ref6 {[%clk 0:02:11.4]} 23. f4 {[%clk 0:02:41.1]} 23...
Nd4 {[%clk 0:02:08.1]} 24. Bxd4 {[%clk 0:02:40.8]} 24... cxd4 {[%clk 0:02:01.6]}
25. Qe2 {[%clk 0:02:38.8]} 25... exf4 {[%clk 0:01:47.7]} 26. gxf4 {[%clk
0:02:35.6]} 26... Rg6+ {[%clk 0:01:47.9]} 27. Kh1 {[%clk 0:02:36]} 27... Rg4
{[%clk 0:01:48.2]} 28. Qf3 {[%clk 0:02:33.7]} 28... Qd8 {[%clk 0:01:37.1]} 29.
Rg1 {[%clk 0:02:21.1]} 29... Qh4 {[%clk 0:01:32.8]} 30. Bxb7 {[%clk 0:02:16.9]}
30... Rxf4 {[%clk 0:01:29.8]} 31. Qd5 {[%clk 0:02:13.1]} 31... Rf2 {[%clk
0:01:23.1]} 32. Rg2 {[%clk 0:02:08.6]} 32... Rxg2 {[%clk 0:00:55.2]} 33. Qxg2
{[%clk 0:02:08]} 33... Be5 {[%clk 0:00:52.6]} 34. Bd5 {[%clk 0:02:01.3]} 34...
Qg4 {[%clk 0:00:46.7]} 35. Qxg4 {[%clk 0:01:45.8]} 35... fxg4 {[%clk 0:00:46.5]}
36. Kg2 {[%clk 0:01:46.6]} 36... Kg7 {[%clk 0:00:43.4]} 37. b4 {[%clk
0:01:46.4]} 37... Kg6 {[%clk 0:00:38.5]} 38. b5 {[%clk 0:01:44.1]} 38... Kg5
{[%clk 0:00:37.5]} 39. a4 {[%clk 0:01:44.3]} 39... h5 {[%clk 0:00:37.9]} 40. a5
{[%clk 0:01:37.5]} 40... h4 {[%clk 0:00:38.3]} 41. b6 {[%clk 0:01:27.6]} 41...
axb6 {[%clk 0:00:37.5]} 42. a6 {[%clk 0:01:27.9]} 42... h3+ {[%clk 0:00:34.8]}
43. Kg1 {[%clk 0:01:25]} 1-0

[Event "Early-Titled-Tuesday-Blitz-January-30-2024"]
[Site "Chess.com"]
[Date "2024.01.30"]
[Round "4"]
[White "HanSchut"]
[Black "kamilianin235"]
[Result "0-1"]
[WhiteElo "2266"]
[BlackElo "2508"]
[TimeControl "180+1"]
[EndTime "8:40:06 PST"]
[Termination "kamilianin235 won by resignation"]

1. e4 {[%clk 0:03:00.9]} 1... c5 {[%clk 0:02:57.5]} 2. Nf3 {[%clk 0:03:00.5]}
2... d6 {[%clk 0:02:52.4]} 3. d4 {[%clk 0:03:00.6]} 3... cxd4 {[%clk 0:02:53.3]}
4. Nxd4 {[%clk 0:03:01]} 4... Nf6 {[%clk 0:02:52.8]} 5. f3 {[%clk 0:03:01.4]}
5... e5 {[%clk 0:02:51.9]} 6. Bb5+ {[%clk 0:03:02]} 6... Nbd7 {[%clk 0:02:51.3]}
7. Nf5 {[%clk 0:03:02]} 7... d5 {[%clk 0:02:51.6]} 8. exd5 {[%clk 0:03:02.9]}
8... a6 {[%clk 0:02:50.8]} 9. Ba4 {[%clk 0:03:03.5]} 9... b5 {[%clk 0:02:50]}
10. Bb3 {[%clk 0:03:04]} 10... Nc5 {[%clk 0:02:44.7]} 11. Ne3 {[%clk 0:03:04.3]}
11... Bb7 {[%clk 0:02:39.1]} 12. Nc3 {[%clk 0:03:04.2]} 12... b4 {[%clk
0:02:30.6]} 13. Na4 {[%clk 0:02:48.8]} 13... Nxb3 {[%clk 0:02:22.6]} 14. axb3
{[%clk 0:02:49.2]} 14... Nxd5 {[%clk 0:02:21]} 15. Nxd5 {[%clk 0:02:47.6]} 15...
Bxd5 {[%clk 0:02:21.6]} 16. Be3 {[%clk 0:02:47.6]} 16... Bc6 {[%clk 0:02:11]}
17. Nb6 {[%clk 0:02:29.2]} 17... Qxd1+ {[%clk 0:02:05.1]} 18. Rxd1 {[%clk
0:02:28.1]} 18... Rb8 {[%clk 0:02:01.9]} 19. O-O {[%clk 0:02:19.9]} 19... Be7
{[%clk 0:01:57.5]} 20. Rfe1 {[%clk 0:02:15.8]} 20... f6 {[%clk 0:01:54.3]} 21.
Nc4 {[%clk 0:02:09.9]} 21... Kf7 {[%clk 0:01:50.6]} 22. Nd6+ {[%clk 0:02:09.5]}
22... Ke6 {[%clk 0:01:49.8]} 23. Nc4 {[%clk 0:01:41.1]} 23... Rhd8 {[%clk
0:01:40.4]} 24. Kf2 {[%clk 0:01:39.4]} 24... Bb5 {[%clk 0:01:36.1]} 25. Ke2
{[%clk 0:01:13.4]} 25... Rdc8 {[%clk 0:01:20.7]} 26. Rd2 {[%clk 0:00:56.1]}
26... Bxc4+ {[%clk 0:01:10.1]} 27. bxc4 {[%clk 0:00:57]} 27... Rxc4 {[%clk
0:01:10]} 28. Ra1 {[%clk 0:00:57.5]} 28... Rc6 {[%clk 0:01:09.7]} 29. Kd1 {[%clk
0:00:52.4]} 29... Rd8 {[%clk 0:01:07.9]} 30. Rxd8 {[%clk 0:00:48.4]} 30... Bxd8
{[%clk 0:01:08.8]} 31. Bd2 {[%clk 0:00:44.4]} 31... a5 {[%clk 0:01:07.1]} 32. c3
{[%clk 0:00:44.9]} 32... bxc3 {[%clk 0:01:03.1]} 33. Bxc3 {[%clk 0:00:45.8]}
33... Rc5 {[%clk 0:01:01.5]} 34. Kd2 {[%clk 0:00:43.8]} 34... Bb6 {[%clk
0:00:59.2]} 35. b4 {[%clk 0:00:40]} 35... axb4 {[%clk 0:00:49.1]} 36. Bxb4
{[%clk 0:00:39.9]} 36... Rb5 {[%clk 0:00:48]} 37. Kc3 {[%clk 0:00:36.1]} 37...
Bd4+ {[%clk 0:00:45.7]} 38. Kc4 {[%clk 0:00:34]} 38... Rxb4+ {[%clk 0:00:45.5]}
0-1

[Event "Early-Titled-Tuesday-Blitz-January-30-2024"]
[Site "Chess.com"]
[Date "2024.01.30"]
[Round "4"]
[White "MagnusCarlsen"]
[Black "Elsa167"]
[Result "1-0"]
[WhiteElo "3289"]
[BlackElo "2845"]
[TimeControl "180+1"]
[EndTime "8:40:08 PST"]
[Termination "MagnusCarlsen won on time"]

1. e4 {[%clk 0:02:41.9]} 1... e6 {[%clk 0:02:42.8]} 2. h4 {[%clk 0:02:36.7]}
2... h6 {[%clk 0:02:34.8]} 3. d4 {[%clk 0:02:34.8]} 3... d5 {[%clk 0:02:33.5]}
4. Nc3 {[%clk 0:02:34.7]} 4... Bb4 {[%clk 0:02:32.1]} 5. e5 {[%clk 0:02:33.7]}
5... c5 {[%clk 0:02:28.2]} 6. a3 {[%clk 0:02:33.8]} 6... Bxc3+ {[%clk
0:02:28.3]} 7. bxc3 {[%clk 0:02:34.7]} 7... Ne7 {[%clk 0:02:25.4]} 8. Qg4 {[%clk
0:02:23.3]} 8... Qa5 {[%clk 0:02:18.1]} 9. Bd2 {[%clk 0:02:21.2]} 9... Rg8
{[%clk 0:02:18.3]} 10. Bd3 {[%clk 0:02:19.7]} 10... Nf5 {[%clk 0:02:05.1]} 11.
Ne2 {[%clk 0:02:16.4]} 11... Qa4 {[%clk 0:01:50.2]} 12. Rb1 {[%clk 0:01:55.6]}
12... c4 {[%clk 0:01:44.6]} 13. Bxf5 {[%clk 0:01:55.3]} 13... exf5 {[%clk
0:01:45.5]} 14. Qf3 {[%clk 0:01:56]} 14... Qxc2 {[%clk 0:01:16.6]} 15. Rb5
{[%clk 0:01:53.8]} 15... Be6 {[%clk 0:01:03.1]} 16. Nf4 {[%clk 0:01:52.9]} 16...
Qe4+ {[%clk 0:00:37.7]} 17. Qxe4 {[%clk 0:01:52.6]} 17... fxe4 {[%clk
0:00:38.6]} 18. Nxd5 {[%clk 0:01:47.9]} 18... a6 {[%clk 0:00:37.4]} 19. Nc7+
{[%clk 0:01:46.6]} 19... Kd7 {[%clk 0:00:37.3]} 20. Rxb7 {[%clk 0:01:43.1]}
20... Kc6 {[%clk 0:00:33]} 21. Nxe6 {[%clk 0:01:40.8]} 21... Kxb7 {[%clk
0:00:30.5]} 22. Nc5+ {[%clk 0:01:41.3]} 22... Kc6 {[%clk 0:00:31.1]} 23. Ke2
{[%clk 0:01:38]} 23... Nd7 {[%clk 0:00:28.1]} 24. Nxd7 {[%clk 0:01:38.5]} 24...
Kxd7 {[%clk 0:00:28.5]} 25. Ke3 {[%clk 0:01:39.1]} 25... f6 {[%clk 0:00:22.9]}
26. Kxe4 {[%clk 0:01:38.5]} 26... fxe5 {[%clk 0:00:23.4]} 27. dxe5 {[%clk
0:01:38.8]} 27... h5 {[%clk 0:00:21.8]} 28. Be3 {[%clk 0:01:37.5]} 28... Ke6
{[%clk 0:00:20.9]} 29. Bg5 {[%clk 0:01:26.3]} 29... Ra7 {[%clk 0:00:14.8]} 30.
Rb1 {[%clk 0:01:25.3]} 30... Re8 {[%clk 0:00:10.3]} 31. f4 {[%clk 0:01:22.3]}
31... g6 {[%clk 0:00:09.5]} 32. Rb6+ {[%clk 0:01:21.7]} 32... Kf7 {[%clk
0:00:10.1]} 33. f5 {[%clk 0:01:22.4]} 33... gxf5+ {[%clk 0:00:10.5]} 34. Kxf5
{[%clk 0:01:23.3]} 34... a5 {[%clk 0:00:05.9]} 35. Rh6 {[%clk 0:01:22.4]} 35...
Kg8 {[%clk 0:00:06.3]} 36. Rxh5 {[%clk 0:01:21.2]} 36... Rg7 {[%clk 0:00:04.4]}
37. e6 {[%clk 0:01:16.8]} 37... Rf8+ {[%clk 0:00:03.9]} 38. Bf6 {[%clk
0:01:17.1]} 38... a4 {[%clk 0:00:01.8]} 39. g4 {[%clk 0:01:14.7]} 39... Rh7
{[%clk 0:00:01.5]} 40. Rg5+ {[%clk 0:01:14.2]} 1-0

[Event "Early-Titled-Tuesday-Blitz-January-30-2024"]
[Site "Chess.com"]
[Date "2024.01.30"]
[Round "4"]
[White "NtcPou"]
[Black "TreinadorBR"]
[Result "0-1"]
[WhiteElo "2059"]
[BlackElo "2322"]
[TimeControl "180+1"]
[EndTime "8:40:08 PST"]
[Termination "TreinadorBR won by checkmate"]

1. e4 {[%clk 0:03:00.9]} 1... c5 {[%clk 0:02:56.6]} 2. Nf3 {[%clk 0:03:00.9]}
2... d6 {[%clk 0:02:57]} 3. Bb5+ {[%clk 0:03:01.4]} 3... Bd7 {[%clk 0:02:56.8]}
4. Bxd7+ {[%clk 0:03:01.4]} 4... Qxd7 {[%clk 0:02:57.7]} 5. c4 {[%clk
0:03:01.5]} 5... g6 {[%clk 0:02:55.7]} 6. d4 {[%clk 0:03:00.6]} 6... cxd4 {[%clk
0:02:55.5]} 7. Nxd4 {[%clk 0:03:01]} 7... Bg7 {[%clk 0:02:55.8]} 8. Nc3 {[%clk
0:02:59.8]} 8... Nc6 {[%clk 0:02:55.1]} 9. Be3 {[%clk 0:03:00]} 9... Nf6 {[%clk
0:02:54.7]} 10. f3 {[%clk 0:03:00.4]} 10... O-O {[%clk 0:02:54.9]} 11. O-O
{[%clk 0:02:59.8]} 11... Rfc8 {[%clk 0:02:53.6]} 12. b3 {[%clk 0:02:56.6]} 12...
Nxd4 {[%clk 0:02:49.5]} 13. Bxd4 {[%clk 0:02:56.1]} 13... Rc6 {[%clk 0:02:27.3]}
14. Rc1 {[%clk 0:02:51.7]} 14... a6 {[%clk 0:02:26.8]} 15. Qd3 {[%clk
0:02:46.6]} 15... Rac8 {[%clk 0:02:26.3]} 16. Na4 {[%clk 0:02:36.5]} 16... Qc7
{[%clk 0:02:14.2]} 17. c5 {[%clk 0:02:24.5]} 17... dxc5 {[%clk 0:02:07.2]} 18.
Nxc5 {[%clk 0:02:23.4]} 18... Nd7 {[%clk 0:01:46.3]} 19. b4 {[%clk 0:02:22.6]}
19... a5 {[%clk 0:01:06.4]} 20. a3 {[%clk 0:02:13.3]} 20... Nxc5 {[%clk
0:01:02]} 21. Bxc5 {[%clk 0:02:05.8]} 21... axb4 {[%clk 0:00:55]} 22. axb4
{[%clk 0:02:05.6]} 22... Rd8 {[%clk 0:00:33.4]} 23. Qb1 {[%clk 0:01:12]} 23...
Rd2 {[%clk 0:00:23.9]} 24. Be3 {[%clk 0:01:11.5]} 24... Bd4 {[%clk 0:00:14.4]}
25. Bxd4 {[%clk 0:01:03.6]} 25... Rxd4 {[%clk 0:00:15.3]} 26. Rxc6 {[%clk
0:01:03.9]} 26... Qxc6 {[%clk 0:00:16.2]} 27. Rc1 {[%clk 0:01:04]} 27... Qb6
{[%clk 0:00:16.5]} 28. Rc8+ {[%clk 0:00:56.6]} 28... Rd8+ {[%clk 0:00:16.2]} 29.
Rc5 {[%clk 0:00:54.8]} 29... Rd4 {[%clk 0:00:14.4]} 30. Rc8+ {[%clk 0:00:52.4]}
30... Kg7 {[%clk 0:00:12.1]} 31. Qb2 {[%clk 0:00:52.7]} 31... f6 {[%clk
0:00:12]} 32. Qf2 {[%clk 0:00:46.2]} 32... Rd1# {[%clk 0:00:11.4]} 0-1

[Event "Early-Titled-Tuesday-Blitz-January-30-2024"]
[Site "Chess.com"]
[Date "2024.01.30"]
[Round "4"]
[White "LaPiToB"]
[Black "SmirnovTimofey2000"]
[Result "1-0"]
[WhiteElo "2288"]
[BlackElo "1941"]
[TimeControl "180+1"]
[EndTime "8:40:09 PST"]
[Termination "LaPiToB won by resignation"]

1. d4 {[%clk 0:02:59.9]} 1... d5 {[%clk 0:02:59.2]} 2. c4 {[%clk 0:02:59.2]}
2... c6 {[%clk 0:02:58.3]} 3. Nc3 {[%clk 0:02:56.5]} 3... Nf6 {[%clk 0:02:58.3]}
4. e3 {[%clk 0:02:56.2]} 4... e6 {[%clk 0:02:55.1]} 5. Nf3 {[%clk 0:02:55.5]}
5... a6 {[%clk 0:02:55.4]} 6. Be2 {[%clk 0:02:52.5]} 6... dxc4 {[%clk
0:02:55.7]} 7. Bxc4 {[%clk 0:02:49.9]} 7... b5 {[%clk 0:02:55.9]} 8. Bd3 {[%clk
0:02:48.9]} 8... c5 {[%clk 0:02:55]} 9. dxc5 {[%clk 0:02:45.7]} 9... Bxc5 {[%clk
0:02:54.8]} 10. O-O {[%clk 0:02:45.5]} 10... O-O {[%clk 0:02:52.2]} 11. Qe2
{[%clk 0:02:42.6]} 11... Bb7 {[%clk 0:02:46.3]} 12. Rd1 {[%clk 0:02:39.6]} 12...
Qc7 {[%clk 0:02:39.9]} 13. a3 {[%clk 0:02:10.9]} 13... Nbd7 {[%clk 0:02:25.3]}
14. Nb1 {[%clk 0:01:51.7]} 14... Ne5 {[%clk 0:02:14.3]} 15. Nxe5 {[%clk
0:01:42.3]} 15... Qxe5 {[%clk 0:02:15.2]} 16. Nc3 {[%clk 0:01:26.9]} 16... Nd5
{[%clk 0:01:59.4]} 17. Ne4 {[%clk 0:01:22.9]} 17... Bb6 {[%clk 0:01:54.5]} 18.
Ng3 {[%clk 0:01:21.3]} 18... Nf6 {[%clk 0:01:45.8]} 19. Rb1 {[%clk 0:01:18.3]}
19... Rfd8 {[%clk 0:01:41.2]} 20. b4 {[%clk 0:01:16.7]} 20... Rac8 {[%clk
0:01:18.8]} 21. Bb2 {[%clk 0:01:14.2]} 21... Qg5 {[%clk 0:00:46.6]} 22. Kh1
{[%clk 0:00:46.5]} 22... Nh5 {[%clk 0:00:42.9]} 23. Qxh5 {[%clk 0:00:43.8]}
23... Qd5 {[%clk 0:00:19.7]} 24. Qxh7+ {[%clk 0:00:42.2]} 24... Kf8 {[%clk
0:00:18.8]} 25. Qxg7+ {[%clk 0:00:42.8]} 25... Ke7 {[%clk 0:00:18.3]} 26. Bf6+
{[%clk 0:00:42.2]} 26... Kd7 {[%clk 0:00:11]} 27. Be4 {[%clk 0:00:42]} 1-0

[Event "Early-Titled-Tuesday-Blitz-January-30-2024"]
[Site "Chess.com"]
[Date "2024.01.30"]
[Round "4"]
[White "PolandHussars"]
[Black "unclear15"]
[Result "1-0"]
[WhiteElo "2606"]
[BlackElo "2399"]
[TimeControl "180+1"]
[EndTime "8:40:10 PST"]
[Termination "PolandHussars won on time"]

1. e4 {[%clk 0:02:57.2]} 1... e6 {[%clk 0:02:51.2]} 2. d4 {[%clk 0:02:56.5]}
2... d5 {[%clk 0:02:51.6]} 3. Nc3 {[%clk 0:02:57.1]} 3... dxe4 {[%clk 0:02:51]}
4. Nxe4 {[%clk 0:02:58]} 4... Bd7 {[%clk 0:02:49]} 5. Bd3 {[%clk 0:02:54.8]}
5... Bc6 {[%clk 0:02:48.8]} 6. Nf3 {[%clk 0:02:55.4]} 6... Nd7 {[%clk
0:02:46.3]} 7. O-O {[%clk 0:02:52]} 7... Ngf6 {[%clk 0:02:46.1]} 8. Ng3 {[%clk
0:02:51.9]} 8... Bxf3 {[%clk 0:02:41.6]} 9. Qxf3 {[%clk 0:02:51.5]} 9... c6
{[%clk 0:02:42.4]} 10. c3 {[%clk 0:02:50.2]} 10... Be7 {[%clk 0:02:40.1]} 11.
Re1 {[%clk 0:02:49.5]} 11... O-O {[%clk 0:02:39.9]} 12. Bc2 {[%clk 0:02:42.9]}
12... c5 {[%clk 0:02:39.1]} 13. Qxb7 {[%clk 0:02:37.4]} 13... cxd4 {[%clk
0:02:37.8]} 14. cxd4 {[%clk 0:02:38.3]} 14... Rc8 {[%clk 0:02:35.8]} 15. Bb3
{[%clk 0:02:33.1]} 15... Bb4 {[%clk 0:02:30.8]} 16. Rd1 {[%clk 0:02:30.6]} 16...
Qa5 {[%clk 0:02:15]} 17. Qf3 {[%clk 0:02:02.3]} 17... Nb6 {[%clk 0:01:31]} 18.
a3 {[%clk 0:01:56.5]} 18... Rfd8 {[%clk 0:00:57.7]} 19. h3 {[%clk 0:01:33.8]}
19... h6 {[%clk 0:00:30.7]} 20. Bxh6 {[%clk 0:01:28.3]} 20... Bf8 {[%clk
0:00:17.5]} 21. Bd2 {[%clk 0:01:17.9]} 21... Qb5 {[%clk 0:00:17]} 22. a4 {[%clk
0:01:15.5]} 22... Qd7 {[%clk 0:00:15.8]} 23. Bg5 {[%clk 0:01:14.8]} 23... Nbd5
{[%clk 0:00:14.6]} 24. Ne4 {[%clk 0:01:06.2]} 24... Nxe4 {[%clk 0:00:11.9]} 25.
Bxd8 {[%clk 0:01:05.7]} 25... Nec3 {[%clk 0:00:04.2]} 26. bxc3 {[%clk 0:01:04]}
26... Rxc3 {[%clk 0:00:03.2]} 27. Rd3 {[%clk 0:01:03.1]} 27... Rxd3 {[%clk
0:00:01.6]} 28. Qxd3 {[%clk 0:01:04]} 28... Qxd8 {[%clk 0:00:00.8]} 29. Rc1
{[%clk 0:01:00.1]} 1-0

[Event "Early-Titled-Tuesday-Blitz-January-30-2024"]
[Site "Chess.com"]
[Date "2024.01.30"]
[Round "4"]
[White "GMaka"]
[Black "GoValya"]
[Result "1-0"]
[WhiteElo "2529"]
[BlackElo "2313"]
[TimeControl "180+1"]
[EndTime "8:40:10 PST"]
[Termination "GMaka won by resignation"]

1. d4 {[%clk 0:03:00.9]} 1... d5 {[%clk 0:02:48.5]} 2. c4 {[%clk 0:02:57.8]}
2... c6 {[%clk 0:02:48.8]} 3. Nf3 {[%clk 0:02:56.4]} 3... g6 {[%clk 0:02:48.7]}
4. Nc3 {[%clk 0:02:47.9]} 4... Bg7 {[%clk 0:02:48.6]} 5. cxd5 {[%clk 0:02:34.4]}
5... cxd5 {[%clk 0:02:48.2]} 6. Qb3 {[%clk 0:02:35.1]} 6... Nf6 {[%clk
0:02:47.1]} 7. Bg5 {[%clk 0:02:35.1]} 7... O-O {[%clk 0:02:44.7]} 8. Bxf6 {[%clk
0:02:34.7]} 8... Bxf6 {[%clk 0:02:44.6]} 9. Qxd5 {[%clk 0:02:29.8]} 9... Nc6
{[%clk 0:02:38.7]} 10. Qxd8 {[%clk 0:02:29.3]} 10... Rxd8 {[%clk 0:02:38.8]} 11.
e3 {[%clk 0:02:30]} 11... a6 {[%clk 0:02:19.9]} 12. Be2 {[%clk 0:02:23.2]} 12...
b5 {[%clk 0:01:55.9]} 13. O-O {[%clk 0:02:21.7]} 13... Bb7 {[%clk 0:01:56.3]}
14. Rfc1 {[%clk 0:02:21.4]} 14... Rac8 {[%clk 0:01:56.4]} 15. Ne4 {[%clk
0:02:18.8]} 15... Na5 {[%clk 0:01:21.1]} 16. Nxf6+ {[%clk 0:02:16.5]} 16... exf6
{[%clk 0:01:20.9]} 17. b3 {[%clk 0:02:15.1]} 17... Nc6 {[%clk 0:01:17.4]} 18. a4
{[%clk 0:02:00.7]} 18... b4 {[%clk 0:01:06.6]} 19. a5 {[%clk 0:01:54.7]} 19...
Rd5 {[%clk 0:01:00.9]} 20. e4 {[%clk 0:01:41.5]} 20... Rxa5 {[%clk 0:00:52.7]}
21. d5 {[%clk 0:01:41.5]} 21... Rxa1 {[%clk 0:00:43.2]} 22. Rxa1 {[%clk
0:01:42.4]} 22... Ne5 {[%clk 0:00:30.9]} 23. Nxe5 {[%clk 0:01:35.2]} 23... fxe5
{[%clk 0:00:31.8]} 24. Bc4 {[%clk 0:01:35.8]} 24... Kf8 {[%clk 0:00:29.9]} 25.
f3 {[%clk 0:01:33.6]} 25... Ke7 {[%clk 0:00:27.7]} 26. Ra4 {[%clk 0:01:33.4]}
26... Kd6 {[%clk 0:00:24.5]} 27. Rxb4 {[%clk 0:01:31.8]} 27... Rc7 {[%clk
0:00:22.3]} 28. Rb6+ {[%clk 0:01:29.6]} 28... Kc5 {[%clk 0:00:22.5]} 29. Rf6
{[%clk 0:01:28.8]} 29... Kd4 {[%clk 0:00:16.1]} 30. h4 {[%clk 0:01:25.6]} 30...
a5 {[%clk 0:00:14.9]} 31. d6 {[%clk 0:01:24.9]} 31... Rd7 {[%clk 0:00:14.7]} 32.
Bxf7 {[%clk 0:01:25.1]} 32... Kc5 {[%clk 0:00:12.5]} 33. Bg8 {[%clk 0:01:21.2]}
33... Rxd6 {[%clk 0:00:12.3]} 34. Rxd6 {[%clk 0:01:16.5]} 34... Kxd6 {[%clk
0:00:12.4]} 35. Bxh7 {[%clk 0:01:17.2]} 35... Kc5 {[%clk 0:00:11.3]} 36. Bxg6
{[%clk 0:01:16.8]} 36... Kb4 {[%clk 0:00:11.7]} 37. Bf7 {[%clk 0:01:17.4]} 37...
Bc6 {[%clk 0:00:11.5]} 38. h5 {[%clk 0:01:17.4]} 38... Ba4 {[%clk 0:00:02.8]}
39. bxa4 {[%clk 0:01:16.3]} 1-0